bitfinex/quotes_ETHUSD_20260130
["timestamp","ask_amount","ask_price","bid_price","bid_amount"]
[1769803338164,4.48424343,2740.4,2739.0,0.765]
[1769803338467,4.48424343,2740.4,2739.1,0.765]
[1769803339185,4.48424343,2740.4,2738.9,13.38170396]
[1769803339460,4.48424343,2740.4,2738.7,0.765]
[1769803339632,4.48424343,2740.4,2739.1,0.91270753]
[1769803339832,0.5396519,2740.3,2739.1,1.36907254]
[1769803340265,0.5396519,2740.3,2739.1,0.45636501]
[1769803340450,0.5396519,2740.3,2739.1,1.36906206]
[1769803340768,0.5396519,2740.3,2739.1,14.75076602]
[1769803341786,0.91233589,2740.3,2739.1,14.75076602]
[1769803342861,0.91233589,2740.3,2739.1,0.45636501]
[1769803343063,0.91233589,2740.3,2739.2,0.765]
[1769803343774,13.29386806,2740.4,2738.5,0.91288966]
[1769803343957,13.29386806,2740.2,2738.3,13.38270396]
[1769803344166,13.29386806,2740.2,2738.3,17.79950462]
[1769803344368,0.1024,2740.2,2738.7,0.91283678]
[1769803344569,1.69431035,2740.3,2738.8,13.38170396]
[1769803344758,0.1024,2740.4,2738.8,13.38170396]
[1769803345082,0.002,2740.1,2738.5,0.766]
[1769803345254,0.002,2740.1,2738.7,14.29452064]
[1769803345450,0.002,2740.1,2738.7,13.38170396]
[1769803345657,0.002,2740.1,2738.5,0.001]
[1769803345658,13.29586806,2740.1,2738.5,0.001]
[1769803345965,15.53586362,2740.0,2738.5,0.001]
[1769803348276,15.53586362,2740.0,2738.3,0.001]
[1769803348677,13.39626806,2739.9,2738.3,0.001]
[1769803349157,3.79,2739.8,2738.3,0.001]
[1769803349354,4.555,2739.8,2738.3,0.001]
[1769803349561,1.79512681,2739.7,2738.3,0.001]
[1769803349883,1.79512681,2739.7,2738.3,13.38270396]
[1769803350046,0.91254197,2739.6,2738.3,14.29565234]
[1769803351987,0.91254197,2739.6,2738.5,13.38170396]
[1769803352165,0.91244205,2739.9,2738.7,13.38170396]
[1769803352363,0.91244205,2739.9,2738.9,13.38170396]
[1769803352586,0.91244205,2739.9,2738.7,0.765]
[1769803353286,0.91244205,2739.9,2738.7,14.14670396]
[1769803353780,0.91244205,2739.9,2738.7,13.38170396]
[1769803353981,0.91244205,2739.9,2738.8,14.14670396]
[1769803354189,0.91244205,2739.9,2738.9,13.38170396]
[1769803354351,0.002,2740.1,2739.0,13.38170396]
[1769803357055,0.002,2740.1,2738.9,0.765]
[1769803357261,13.87052955,2739.9,2738.3,0.001]
[1769803357464,15.271786,2739.8,2738.3,0.001]
[1769803357955,15.271786,2739.8,2739.2,0.001]
[1769803358158,15.271786,2739.8,2738.3,0.001]
[1769803358581,13.60813304,2739.5,2738.3,0.001]
[1769803358783,0.9126086,2739.4,2738.3,0.001]
[1769803358961,1.8171176,2739.3,2738.3,0.001]
[1769803359164,0.9126086,2739.4,2738.3,0.001]
[1769803359367,0.9126086,2739.4,2738.3,13.40893464]
[1769803359888,0.002,2740.1,2738.5,13.40793464]
[1769803360076,0.91437806,2740.1,2738.7,13.40793464]
[1769803360790,0.002,2740.1,2739.1,14.32064319]
[1769803361008,3.6483314,2741.0,2739.2,13.40793464]
[1769803361671,0.002,2741.1,2739.4,13.40793464]
[1769803362489,0.91405064,2741.1,2739.4,13.40793464]
[1769803362691,0.002,2741.1,2739.7,0.91250866]
[1769803362906,0.002,2741.1,2739.8,14.17293464]
[1769803363098,0.002,2741.1,2739.9,14.17293464]
[1769803364400,0.002,2741.1,2739.9,0.765]
[1769803365175,0.002,2741.1,2739.9,0.91242764]
[1769803365368,0.002,2741.1,2739.9,15.08436228]
[1769803366114,0.002,2741.1,2739.7,0.91248567]
[1769803366284,13.50773304,2741.1,2739.1,14.17193464]
[1769803366599,13.60813304,2741.0,2739.1,14.17193464]
[1769803366909,13.60813304,2741.0,2738.7,14.22045484]
[1769803366910,13.50573304,2740.7,2738.7,14.22045484]
[1769803367114,13.50573304,2740.7,2738.8,1.67679425]
[1769803367416,0.1024,2740.8,2739.1,14.32064206]
[1769803367569,0.1024,2740.8,2739.1,13.40793464]
[1769803367776,13.60813304,2740.8,2739.1,13.40793464]
[1769803369105,13.50573304,2740.5,2738.8,0.764]
[1769803369403,13.50573304,2740.0,2738.7,0.8125202]
[1769803369782,0.1024,2740.3,2738.6,0.91287185]
[1769803369986,0.1024,2740.3,2738.6,13.40793464]
[1769803370486,1.4632133,2740.3,2738.6,13.40793464]
[1769803371370,0.1024,2740.1,2738.6,14.32080294]
[1769803371572,0.91234216,2740.2,2738.6,14.32080294]
[1769803372473,0.91234216,2740.2,2738.7,14.17193464]
[1769803373409,3.64936865,2740.4,2738.9,13.40793464]
[1769803373595,0.72987373,2740.3,2738.9,13.40793464]
[1769803374409,0.72987373,2740.3,2738.8,1.67680852]
[1769803374609,3.79,2740.2,2738.5,14.32081644]
[1769803374808,0.1024,2740.1,2738.5,15.08481644]
[1769803375508,0.91240875,2740.0,2738.5,15.08481644]
[1769803375688,0.46644438,2739.9,2738.6,13.40793464]
[1769803376505,0.91240875,2740.0,2738.6,13.40793464]
[1769803376894,0.91240875,2740.0,2738.7,0.764]
[1769803377299,0.91240875,2740.0,2738.7,14.17193464]
[1769803377512,3.64963503,2740.1,2738.8,0.91280852]
[1769803378530,3.64963503,2740.1,2738.9,14.17193464]
[1769803378825,4.54378362,2740.1,2738.9,14.17193464]
[1769803379412,4.54378362,2740.1,2738.4,13.40793464]
[1769803379591,4.54378362,2740.1,2738.5,0.764]
[1769803379793,13.50573304,2740.0,2738.3,0.001]
[1769803380114,13.50573304,2740.0,2738.3,0.765]
[1769803380324,1.80495167,2739.9,2738.3,1.67796853]
[1769803380712,15.31068471,2739.9,2738.3,0.765]
[1769803381625,0.91247536,2739.8,2738.3,15.08588886]
[1769803382065,14.4182084,2739.8,2738.3,0.001]
[1769803382343,13.50413304,2739.3,2737.3,0.764]
[1769803382539,13.50573304,2738.9,2736.8,13.40793464]
[1769803382709,13.50573304,2738.9,2736.9,0.764]
[1769803382908,13.50493304,2738.9,2736.9,0.764]
[1769803383109,13.50493304,2738.9,2737.0,0.9133905]
[1769803383312,13.50573304,2738.1,2736.4,0.24951254]
[1769803383552,13.50573304,2737.8,2736.4,0.24951254]
[1769803384134,0.91310858,2737.9,2736.4,0.24951254]
[1769803384540,14.41884162,2737.9,2736.4,0.24951254]
[1769803385103,14.41884162,2737.9,2736.4,1.16310368]
[1769803385304,0.91310858,2737.9,2736.4,1.16310368]
[1769803385530,1.93279059,2737.9,2736.5,0.48176724]
[1769803385732,1.93279059,2737.9,2736.5,1.3953202]
[1769803385934,3.65172122,2738.5,2736.5,14.80325484]
[1769803386204,13.50573304,2738.4,2736.5,0.48176724]
[1769803386399,13.50573304,2738.4,2736.5,1.67856194]
[1769803386833,13.50573304,2738.4,2736.4,0.24951254]
[1769803386834,13.99515505,2738.3,2736.4,0.24951254]
[1769803387037,14.40070553,2738.3,2736.4,0.24951254]
[1769803387225,13.99515505,2737.7,2735.6,12.89104969]
[1769803387541,6.28269572,2737.8,2735.6,13.80492341]
[1769803387542,13.99515505,2737.5,2735.6,13.80492341]
[1769803387725,13.89275505,2737.3,2735.6,13.80492341]
[1769803388737,0.91327537,2737.4,2735.6,13.80492341]
[1769803388938,14.80603042,2737.4,2735.6,0.91387372]
[1769803389140,0.91327537,2737.4,2735.6,13.80492341]
[1769803389321,0.91327537,2737.4,2735.7,12.89104969]
[1769803389515,0.91327537,2737.4,2735.7,12.79104969]
[1769803389717,3.65267224,2737.8,2735.9,12.88944969]
[1769803389917,3.65245971,2737.9,2735.9,12.88784969]
[1769803390109,0.91310858,2737.9,2735.9,12.88784969]
[1769803390309,0.91310858,2737.9,2735.9,12.89104969]
[1769803391734,0.91310858,2737.9,2736.0,13.80479238]
[1769803391927,14.80586363,2737.9,2736.1,0.765]
[1769803392747,14.80586363,2737.9,2736.2,0.765]
[1769803393935,14.80586363,2737.9,2736.3,0.9136425]
[1769803394141,1.87304597,2737.8,2736.4,0.53332125]
[1769803394446,1.87304597,2737.8,2736.4,0.53432125]
[1769803394619,0.002,2737.7,2736.4,13.42537094]
[1769803395719,0.002,2737.7,2736.6,12.89104969]
[1769803395916,0.002,2737.7,2736.7,0.91350897]
[1769803396116,0.002,2737.7,2736.8,0.77784759]
[1769803396647,0.9127752,2738.9,2737.0,12.89104969]
[1769803396850,0.91476575,2739.0,2737.2,12.89104969]
[1769803397146,1.56919793,2739.0,2737.4,12.89104969]
[1769803397448,1.56919793,2739.0,2737.3,1.29832125]
[1769803397449,15.46195298,2739.0,2737.5,0.765]
[1769803397638,15.46195298,2739.0,2736.7,0.91350897]
[1769803397948,15.46195298,2739.0,2737.2,0.9133421]
[1769803398145,13.89275505,2738.8,2737.2,1.44651315]
[1769803398451,13.89275505,2738.8,2737.2,0.53317105]
[1769803398625,13.89275505,2738.8,2737.1,1.67835816]
[1769803398944,2.53955219,2738.9,2737.1,14.56940785]
[1769803399149,15.46195298,2739.0,2737.1,14.56940785]
[1769803399961,0.65643218,2739.0,2737.5,12.89104969]
[1769803400164,0.002,2739.0,2737.5,12.89104969]
[1769803401149,13.89275505,2740.4,2737.9,12.89104969]
[1769803401325,0.91237546,2740.1,2738.1,12.89104969]
[1769803401650,0.48337006,2740.0,2738.3,12.89104969]
[1769803402073,0.48337006,2740.0,2738.4,13.80399155]
[1769803402285,1.1841695,2740.2,2738.4,13.80399155]
[1769803402572,1.18416838,2740.2,2738.4,13.80399155]
[1769803402942,0.27182331,2740.2,2738.4,13.80399155]
[1769803403145,1.18418185,2740.2,2738.4,13.80399155]
[1769803403559,1.18418185,2740.2,2738.5,13.65604969]
[1769803403873,0.4833428,2740.1,2738.7,12.89104969]
[1769803404040,0.91240875,2740.0,2738.8,0.91280852]
[1769803404243,1.39574111,2740.1,2738.8,0.91280852]
[1769803404668,0.4833428,2740.1,2738.8,13.80385821]
[1769803404872,1.18416752,2740.2,2738.8,13.80385821]
[1769803405568,0.27182331,2740.2,2738.8,13.80385821]
[1769803405771,0.27182331,2740.2,2738.9,0.2335703]
[1769803405971,0.002,2740.8,2739.2,13.80372492]
[1769803406192,0.002,2740.8,2739.3,13.65604969]
[1769803407778,0.002,2739.9,2739.3,13.65604969]
[1769803408077,0.002,2740.8,2739.4,0.9126086]
[1769803408372,0.002,2740.8,2739.5,0.765]
[1769803408678,0.002,2740.8,2739.5,13.65604969]
[1769803409263,13.89475505,2740.8,2739.3,0.91262684]
[1769803409464,13.89475505,2740.8,2739.4,0.765]
[1769803409777,0.002,2740.8,2739.4,0.765]
[1769803410180,13.89475505,2740.8,2739.4,0.765]
[1769803410681,13.89475505,2740.8,2739.4,1.67760325]
[1769803410853,15.28223056,2740.7,2739.4,1.67760325]
[1769803411046,1.38947551,2740.7,2739.4,1.67760325]
[1769803411248,0.002,2740.8,2739.4,1.67760325]
[1769803411856,13.89475505,2740.8,2739.5,0.765]
[1769803412057,0.91217572,2740.7,2738.2,3.75437927]
[1769803412269,13.89275505,2740.6,2738.6,0.765]
[1769803412501,13.89275505,2740.6,2738.6,13.65604969]
[1769803412688,1.48049308,2740.5,2738.6,13.65604969]
[1769803413563,15.37324813,2740.5,2738.6,12.89104969]
[1769803413768,15.37324813,2740.5,2738.7,0.764]
[1769803414165,13.89275505,2740.3,2738.4,3.65175703]
[1769803414371,13.89275505,2740.1,2738.5,0.91290644]
[1769803414597,13.89275505,2740.1,2738.6,0.91285031]
[1769803414799,13.89275505,2740.1,2738.7,0.91283219]
[1769803415204,13.89275505,2740.1,2738.4,3.65171991]
[1769803415374,13.89275505,2740.1,2738.6,0.91287085]
[1769803415568,13.89275505,2739.9,2738.6,0.91287085]
[1769803416400,0.91247536,2739.8,2738.4,0.91294186]
[1769803418410,3.64990145,2739.9,2738.4,14.77698327]
[1769803419588,3.64990145,2739.9,2738.8,0.001]
[1769803420409,3.64990145,2739.9,2738.5,0.764]
[1769803420606,0.91250866,2739.7,2738.6,0.91287519]
[1769803422185,0.91248526,2739.8,2738.6,14.7769166]
[1769803422511,0.91227558,2740.4,2738.6,14.7769166]
[1769803424713,14.85099407,2740.4,2738.6,14.7769166]
[1769803424895,16.31576841,2740.3,2738.7,0.764]
[1769803425692,16.31576841,2740.3,2738.6,14.7769166]
[1769803425893,13.93871849,2740.1,2738.8,0.764]
[1769803426695,14.85112724,2740.0,2738.8,0.764]
[1769803427429,14.85112724,2740.0,2738.5,0.91290567]
[1769803427631,15.78879472,2739.9,2738.5,0.91288631]
[1769803428033,15.78879472,2739.9,2738.0,3.65225441]
[1769803428234,13.93871849,2739.7,2737.9,1.06396856]
[1769803428405,13.93871849,2739.7,2737.9,1.97704866]
[1769803428601,13.93871849,2739.5,2738.0,0.91307047]
[1769803428830,15.42384454,2739.4,2737.9,1.06396856]
[1769803429015,13.93871849,2739.2,2737.9,1.06396856]
[1769803429330,13.93871849,2739.0,2737.7,0.001]
[1769803430623,0.9127752,2738.9,2737.7,0.001]
[1769803430826,13.93871849,2738.8,2736.5,13.86404141]
[1769803431128,13.93871849,2738.6,2736.6,0.764]
[1769803431430,13.93871849,2738.6,2736.7,0.91349109]
[1769803431635,13.93871849,2738.6,2737.9,0.001]
[1769803431833,13.93871849,2738.6,2736.6,1.67753572]
[1769803432038,0.764,2738.8,2736.6,1.67753572]
[1769803432039,13.93871849,2738.4,2736.6,1.67753572]
[1769803432238,13.93871849,2738.4,2736.6,0.764]
[1769803432441,13.93871849,2738.4,2736.6,1.67753055]
[1769803432612,13.93871849,2738.4,2736.7,0.91350548]
[1769803432812,0.9129752,2738.3,2736.7,0.91350548]
[1769803433012,1.85035945,2738.2,2736.7,0.91350548]
[1769803433213,1.85035945,2738.2,2736.6,1.67751853]
[1769803433637,1.85035945,2738.2,2736.6,15.54155994]
[1769803433832,0.9129752,2738.3,2736.6,15.54155994]
[1769803435042,3.65190081,2738.4,2736.6,15.54155994]
[1769803437342,3.65190081,2738.4,2736.7,0.765]
[1769803437712,3.65190081,2738.4,2736.8,13.86404141]
[1769803438435,2.45532865,2738.5,2736.8,13.86404141]
[1769803438436,1.54238679,2738.5,2736.8,13.86404141]
[1769803438636,1.7622708,2738.7,2737.0,13.86404141]
[1769803439340,1.7622708,2738.7,2737.2,13.86404141]
[1769803440538,13.93871849,2739.8,2737.4,13.86404141]
[1769803440722,5.13529062,2739.7,2737.8,13.86404141]
[1769803441058,5.13529062,2739.7,2738.0,13.86404141]
[1769803441225,5.13529062,2739.7,2738.1,0.91304189]
[1769803441755,13.93871849,2739.6,2738.2,0.765]
[1769803441926,15.8461194,2739.5,2738.2,0.765]
[1769803442332,15.8461194,2739.5,2738.1,0.91304189]
[1769803442520,15.8461194,2739.5,2738.1,1.67804189]
[1769803443236,0.9126086,2739.4,2738.1,1.67804189]
[1769803443458,0.002,2739.3,2738.1,1.67804189]
[1769803443657,2.04311624,2739.3,2738.2,0.53303381]
[1769803444356,15.98183473,2739.3,2737.9,0.91408773]
[1769803444665,13.93871849,2739.1,2737.9,0.001]
[1769803444953,13.93871849,2739.1,2738.1,0.91303967]
[1769803445141,13.93871849,2739.1,2738.0,0.91305514]
[1769803445345,2.68561372,2739.0,2738.0,0.45664812]
[1769803445563,0.91274187,2739.0,2737.9,0.001]
[1769803446955,0.91267523,2739.2,2737.9,0.001]
[1769803447519,0.91267523,2739.2,2737.5,14.78736045]
[1769803449060,2.04311624,2739.3,2737.5,15.2858467]
[1769803449356,0.91464576,2739.3,2737.5,14.78736045]
[1769803449558,0.91270855,2739.1,2737.5,14.78736045]
[1769803450157,13.72798677,2739.1,2737.5,14.78736045]
[1769803450757,13.72798677,2739.1,2737.6,0.765]
[1769803451766,13.72798677,2739.1,2737.7,0.91317529]
[1769803452739,12.81527822,2738.9,2736.7,13.87411845]
[1769803452943,14.47580604,2738.8,2736.7,13.87411845]
[1769803453147,14.47580604,2738.8,2737.2,0.91331752]
[1769803453463,14.47580604,2738.8,2737.2,0.91332055]
[1769803453664,12.81527822,2738.6,2736.2,13.87411845]
[1769803453966,12.81527822,2738.3,2736.2,0.91365165]
[1769803454129,12.81527822,2738.1,2736.4,0.9136043]
[1769803454643,12.81527822,2738.1,2736.3,1.44697243]
[1769803454842,12.81527822,2738.1,2736.4,0.91360825]
[1769803455151,12.81527822,2738.1,2736.3,0.53334864]
[1769803455356,12.81527822,2738.1,2736.7,0.91348935]
[1769803455532,12.81527822,2738.1,2736.5,13.87411845]
[1769803455533,0.91307523,2738.0,2736.5,13.87411845]
[1769803456137,0.91307523,2738.0,2736.3,0.9136425]
[1769803456138,13.72835345,2738.0,2736.3,0.9136425]
[1769803456564,13.72835345,2738.0,2736.3,14.78776095]
[1769803456773,0.91307523,2738.0,2737.4,0.001]
[1769803457263,0.91284185,2738.7,2737.5,0.765]
[1769803457576,16.46864565,2738.8,2737.4,0.001]
[1769803457775,12.81527822,2738.7,2737.4,0.001]
[1769803458137,3.65336743,2738.8,2737.4,0.001]
[1769803458332,4.47530844,2738.8,2737.4,0.001]
[1769803458657,17.29058666,2738.8,2737.4,0.766]
[1769803458863,4.47530844,2738.8,2737.4,0.766]
[1769803459365,12.81527822,2738.7,2737.4,0.001]
[1769803459561,13.72815341,2738.6,2737.4,0.001]
[1769803459762,1.73796542,2738.5,2737.4,0.001]
[1769803461270,0.91287519,2738.6,2737.4,0.001]
[1769803462472,7.44150076,2738.7,2737.4,0.001]
[1769803465564,12.81527822,2738.5,2737.4,0.001]
[1769803465959,3.79,2738.6,2737.4,0.001]
[1769803466686,16.60527822,2738.6,2737.4,0.001]
[1769803466884,2.0256779,2738.5,2737.4,0.001]
[1769803467254,3.79,2738.6,2737.4,0.001]
[1769803468784,0.91290852,2738.5,2737.4,0.001]
[1769803469285,0.91290852,2738.5,2737.6,0.001]
[1769803471695,4.47518913,2738.8,2737.6,0.001]
[1769803471696,0.82394101,2738.8,2737.6,13.87511845]
[1769803471903,0.002,2738.8,2737.7,13.87411845]
[1769803472106,0.002,2738.8,2737.9,13.87411845]
[1769803473106,0.002,2738.8,2738.0,14.78719368]
[1769803473262,0.002,2739.0,2738.0,14.78719368]
[1769803473793,0.002,2739.0,2738.1,0.765]
[1769803474566,0.002,2739.0,2737.8,0.91311295]
[1769803474764,0.002,2739.0,2737.9,0.91310817]
[1769803474967,0.002,2739.0,2737.8,17.52665344]
[1769803475389,0.002,2739.0,2737.7,3.65243434]
[1769803475574,0.002,2739.0,2737.8,0.765]
[1769803475774,0.002,2739.0,2737.8,1.29816096]
[1769803476921,0.002,2739.0,2737.9,0.765]
[1769803477187,0.002,2739.0,2737.9,0.91308616]
[1769803477392,12.98112341,2739.0,2737.9,1.67808616]
[1769803479405,0.9127752,2738.9,2737.9,1.67808616]
[1769803479596,3.03236123,2738.9,2738.0,0.58637968]
[1769803481188,3.03236123,2738.9,2738.1,0.91304189]
[1769803482368,0.91476657,2739.0,2738.1,13.77117448]
[1769803482868,0.002,2738.8,2738.1,0.91304189]
[1769803483698,0.002,2738.8,2738.0,1.50043163]
[1769803483997,0.002,2738.8,2738.0,1.67905195]
[1769803484980,0.002,2738.8,2738.0,14.53718454]
[1769803485381,0.29056162,2739.3,2738.1,12.85813259]
[1769803485585,1.20320418,2739.3,2738.0,0.91405195]
[1769803485788,1.20320418,2739.3,2738.1,1.22164818]
[1769803486609,13.81224143,2739.3,2738.1,1.22164818]
[1769803486808,13.81224143,2739.3,2738.1,0.45664818]
[1769803487015,13.81224143,2739.3,2738.0,1.67905195]
[1769803487380,13.81224143,2739.3,2738.0,0.766]
[1769803487982,17.60224143,2739.3,2738.0,1.67907026]
[1769803488177,17.60224143,2739.3,2738.0,0.91407026]
[1769803488418,2.12526771,2739.2,2738.1,0.45663712]
[1769803488613,4.99320418,2739.3,2738.1,0.45663712]
[1769803488819,4.99320418,2739.3,2738.2,0.765]
[1769803489426,4.99320418,2739.3,2738.2,1.6780032]
[1769803489583,4.99320418,2739.3,2738.2,0.765]
[1769803490021,4.99320418,2739.3,2738.2,1.67800802]
[1769803490226,2.12526771,2739.2,2738.2,1.3437943]
[1769803490521,2.12526771,2739.2,2738.0,0.001]
[1769803490721,14.73430496,2739.2,2738.1,0.765]
[1769803490928,14.73430496,2739.2,2738.1,1.67803521]
[1769803491523,0.91270855,2739.1,2738.1,0.765]
[1769803491726,1.92978477,2739.0,2738.1,0.765]
[1769803492434,1.92978477,2739.0,2738.0,0.91407015]
[1769803492639,1.92978477,2739.0,2738.0,1.67907015]
[1769803492946,0.91270855,2739.1,2738.1,0.913041]
[1769803493406,0.91270855,2739.1,2738.1,13.77117359]
[1769803493593,3.65083421,2739.2,2738.1,13.77117359]
[1769803493792,3.65083421,2739.2,2738.1,0.913041]
[1769803494090,12.60903725,2739.1,2738.0,0.9140746]
[1769803494412,1.62598715,2739.0,2738.0,0.9140526]
[1769803494788,1.62598715,2739.0,2738.0,0.001]
[1769803494995,14.2350244,2739.0,2738.0,0.001]
[1769803495919,0.9127752,2738.9,2738.0,0.001]
[1769803496414,0.9127752,2738.9,2738.2,0.001]
[1769803496620,1.87909004,2738.8,2738.0,0.001]
[1769803496822,13.52181245,2738.9,2738.0,0.001]
[1769803498830,13.37403725,2738.8,2736.9,13.77156353]
[1769803499126,12.60903725,2738.4,2736.6,1.67852259]
[1769803499304,12.60903725,2738.4,2736.7,0.91349516]
[1769803499628,12.60903725,2738.4,2736.6,1.67851715]
[1769803499934,12.60903725,2738.4,2736.7,0.91350764]
[1769803500117,12.60903725,2738.4,2736.6,1.67851902]
[1769803500310,12.60903725,2738.4,2736.7,0.91350448]
[1769803500511,12.60903725,2738.2,2736.8,0.53326734]
[1769803500715,12.60903725,2738.0,2736.7,0.91350651]
[1769803501034,12.60903725,2738.0,2736.8,0.91347227]
[1769803501401,12.60903725,2738.0,2736.2,0.91367495]
[1769803501607,12.60903725,2738.0,2736.1,0.91369318]
[1769803501798,12.60903725,2738.0,2736.0,1.67872596]
[1769803502131,12.60903725,2737.4,2736.0,0.765]
[1769803502331,13.37403725,2737.4,2735.9,0.25133407]
[1769803502509,6.29007728,2736.9,2735.5,0.0848947]
[1769803502833,12.60903725,2736.6,2735.5,0.0848947]
[1769803503404,12.60903725,2736.6,2734.3,3.65714973]
[1769803503607,12.60903725,2736.0,2734.2,0.26659154]
[1769803503919,12.60903725,2735.8,2734.2,0.26659154]
[1769803504098,12.60903725,2735.6,2734.2,1.18090861]
[1769803504298,0.40532827,2736.0,2734.4,0.91425619]
[1769803504299,12.60903725,2736.0,2734.4,0.91425619]
[1769803504565,1.26090372,2735.9,2734.5,0.91423688]
[1769803504842,0.91380948,2735.8,2734.4,12.85813259]
[1769803505140,1.26090372,2735.9,2734.3,13.77244338]
[1769803505439,0.9136425,2736.3,2734.3,13.77244338]
[1769803505611,3.13969994,2736.3,2734.5,12.85813259]
[1769803505803,0.91363137,2736.4,2734.7,12.85813259]
[1769803506002,12.60903725,2736.8,2734.9,12.85813259]
[1769803506003,1.51514879,2736.6,2734.9,12.85813259]
[1769803506253,1.51514216,2736.6,2734.9,12.85813259]
[1769803506403,14.12417941,2736.6,2735.0,0.765]
[1769803506608,1.51514216,2736.6,2735.2,13.47604231]
[1769803506806,1.51514216,2736.6,2735.1,0.91404336]
[1769803507023,14.22724392,2736.6,2735.0,1.6790618]
[1769803507220,12.71210176,2736.4,2735.0,0.765]
[1769803507433,12.71210176,2736.4,2735.0,1.67906538]
[1769803507955,0.765,2736.5,2735.0,1.67906538]
[1769803508253,12.94011598,2736.4,2735.0,1.67907442]
[1769803508562,12.94011598,2736.4,2735.0,0.765]
[1769803508727,12.71210176,2736.2,2735.0,0.765]
[1769803508923,12.71210176,2736.2,2734.5,0.91422441]
[1769803509117,12.71210176,2736.2,2734.6,0.91419388]
[1769803509446,1.36257443,2736.1,2735.0,0.91407422]
[1769803509767,1.36257443,2736.1,2734.9,0.91508808]
[1769803510063,12.71410176,2736.2,2734.9,0.001]
[1769803510553,12.71210176,2736.0,2734.9,0.001]
[1769803510715,12.71210176,2735.8,2734.9,0.001]
[1769803511449,0.91377608,2735.9,2734.9,0.001]
[1769803512005,13.62587784,2735.9,2734.9,0.001]
[1769803512212,14.44019998,2735.8,2734.9,0.001]
[1769803512811,0.91384289,2735.7,2734.9,0.001]
[1769803513054,13.62594465,2735.7,2734.2,0.26659154]
[1769803513716,13.62594465,2735.7,2734.2,1.18093117]
[1769803514042,17.41594465,2735.7,2734.2,0.26659154]
[1769803514224,2.27994144,2735.6,2734.2,14.65695193]
[1769803514411,4.70384289,2735.7,2734.2,14.65695193]
[1769803515854,4.70384289,2735.7,2734.3,13.47604231]
[1769803516055,4.70384289,2735.7,2734.2,1.18090962]
[1769803516222,17.41594465,2735.7,2734.2,1.18090962]
[1769803516421,17.41594465,2735.7,2734.2,1.18091375]
[1769803516622,2.10713162,2735.6,2734.3,0.48384046]
[1769803517023,0.9139097,2735.5,2734.3,1.39813281]
[1769803517233,0.9139097,2735.5,2734.3,0.48384046]
[1769803517435,0.9139097,2735.5,2734.2,1.18091655]
[1769803517436,13.62601146,2735.5,2734.2,0.26659154]
[1769803517756,13.62601146,2735.5,2733.5,0.91456481]
[1769803518067,0.1908688,2734.0,2732.8,0.0020851]
[1769803518361,0.1908688,2734.0,2732.8,0.9168967]
[1769803518562,0.1908688,2734.0,2732.9,0.45762679]
[1769803519181,0.91444456,2733.9,2732.9,1.37238656]
[1769803519379,0.91444456,2733.9,2732.9,0.45762679]
[1769803519531,0.91444456,2733.9,2732.9,1.37240521]
[1769803519730,1.10530343,2734.0,2732.9,1.37240521]
[1769803519935,12.71210176,2735.2,2733.0,13.97940301]
[1769803520163,0.91404336,2735.1,2733.2,13.47604231]
[1769803520360,0.91404336,2735.1,2733.0,0.5033607]
[1769803520361,0.91404336,2735.1,2733.4,13.47604231]
[1769803521163,0.9139097,2735.5,2733.6,13.47604231]
[1769803521664,0.9139097,2735.5,2733.5,0.91457837]
[1769803521665,13.62601146,2735.5,2733.5,0.91457837]
[1769803521842,12.71210176,2735.3,2732.9,3.65901427]
[1769803522195,12.71210176,2735.1,2732.8,14.24412741]
[1769803522361,12.71210176,2735.1,2733.4,0.91460876]
[1769803522960,12.71210176,2735.1,2733.6,0.001]
[1769803523162,0.9141102,2734.9,2733.6,0.001]
[1769803524183,13.62621196,2734.9,2733.6,0.001]
[1769803524379,13.62621196,2734.9,2733.2,0.91467876]
[1769803525149,13.62621196,2734.9,2733.1,0.91470082]
[1769803525351,13.62621196,2734.9,2732.9,3.65901692]
[1769803525552,1.72826528,2734.8,2733.0,13.93363043]
[1769803525753,0.9141102,2734.9,2733.0,13.93363043]
[1769803527267,0.91404336,2735.1,2733.2,13.47604231]
[1769803529202,0.91404336,2735.1,2733.3,14.24204231]
[1769803529504,0.91404336,2735.1,2733.5,13.47604231]
[1769803529704,1.93887819,2735.4,2733.5,13.47604231]
[1769803529914,0.91397652,2735.3,2733.7,13.47604231]
[1769803530606,13.62607828,2735.3,2733.6,0.85438072]
[1769803530786,13.62607828,2735.3,2733.5,0.766]
[1769803531171,12.71210176,2735.1,2733.5,0.766]
[1769803531375,12.71210176,2734.9,2733.0,0.91472796]
[1769803531608,12.71210176,2734.7,2733.0,0.91472796]
[1769803531769,12.71210176,2734.7,2733.0,14.39077027]
[1769803532102,1.36262454,2734.6,2733.0,14.39077027]
[1769803533211,1.36262454,2734.6,2733.1,0.766]
[1769803533614,0.91424392,2734.5,2733.2,0.91467876]
[1769803533778,0.91424392,2734.5,2733.1,1.68070877]
[1769803534112,13.62634568,2734.5,2733.1,0.766]
[1769803534272,14.57669635,2734.4,2733.1,0.766]
[1769803535012,12.71210176,2734.2,2732.8,0.0020851]
[1769803535388,12.71210176,2734.2,2732.8,3.66130868]
[1769803535591,0.91437767,2734.1,2732.8,0.0020851]
[1769803536194,13.62647943,2734.1,2732.8,0.0020851]
[1769803536519,12.71210176,2733.9,2732.8,0.0020851]
[1769803537597,0.91447801,2733.8,2732.8,0.0020851]
[1769803539742,1.01671079,2734.3,2732.8,0.0020851]
[1769803540338,13.30670366,2734.2,2732.8,0.0020851]
[1769803540634,0.91431079,2734.3,2732.9,0.766]
[1769803540841,0.91431079,2734.3,2732.8,0.0020851]
[1769803540842,13.30670366,2734.1,2732.8,0.0020851]
[1769803541023,13.30670366,2734.1,2732.5,0.23802404]
[1769803541223,13.30670366,2733.9,2732.5,0.23802404]
[1769803541457,13.30670366,2733.7,2732.5,0.23802404]
[1769803541643,0.91457837,2733.5,2732.5,0.23802404]
[1769803542163,1.68057837,2733.5,2732.5,0.23802404]
[1769803542457,14.22128203,2733.5,2732.5,0.23802404]
[1769803542746,14.22128203,2733.5,2732.1,0.91502639]
[1769803542747,0.766,2733.4,2732.1,0.91502639]
[1769803543123,0.766,2733.4,2732.1,0.91502272]
[1769803543323,1.4987282,2733.3,2732.1,0.91502927]
[1769803543519,14.80543186,2733.3,2731.3,13.28924638]
[1769803543722,14.22138242,2733.2,2731.4,0.91528154]
[1769803544251,14.22138242,2733.2,2731.4,14.20452792]
[1769803544422,0.91467876,2733.2,2731.4,14.20452792]
[1769803544625,1.96436247,2733.2,2731.6,13.28924638]